Cogmind - Beta 15 @@@ ROGUE MODE // 2025.10.08 @ 15:23:58 Player: Bikerider58 Result: Self-destructed Performance ------------- Evolutions (1) 500 Regions Visited (5) 1000 Robots Destroyed (44) 220 Value Destroyed (824) 824 Prototype IDs (6) 120 Alien Tech Used (0) 0 Bonus (211) 211 TOTAL SCORE: 2875 Bonus ------- Follower Combat Kills 211 Cogmind --------- Core Integrity 179/400 Matter 90/300 Energy 100/100 System Corruption 4% Temperature Cool (0) Movement Core (400) Ox7 Location -9/Exiles Parts ------- > --- POWER (1) -------- (None) > --- PROPULSION (2) --- (None) > --- UTILITY (3) ------ Large Storage Unit > --- WEAPON (3) ------- Rocket Launcher > --- INVENTORY (15) --- Experimental Sensor Array High-powered Shotgun High-powered Shotgun High-powered Shotgun Plasma Cutter Peak State ------------ > --- POWER ------------ Heavy Ion Engine > --- PROPULSION ------- Light Treads Light Treads > --- UTILITY ---------- Large Storage Unit Improved Targeting Computer Light Armor Plating > --- WEAPON ----------- High-powered Shotgun High-powered Shotgun High-powered Shotgun > --- INVENTORY -------- Light Treads Experimental Sensor Array Light Armor Plating Light Armor Plating High-powered Shotgun High-powered Shotgun Rocket Launcher Plasma Cutter [Rating: 20] Favorites ----------- Power Heavy Ion Engine Engine Heavy Ion Engine Propulsion Light Treads Treads Light Treads Leg Carbon-fiber Leg Wheel Wheel Utility Light Armor Plating Device Seismic Detector Storage Medium Storage Unit Processor Improved Targeting Computer Protection Light Armor Plating Weapon Heavy Assault Rifle Energy Gun EM Pulse Gun Energy Cannon Advanced Beam Cannon Ballistic Gun Heavy Assault Rifle Ballistic Cannon Assault Cannon Launcher Rocket Launcher Build | -11 -10 -10 -9 -9 -9 ------- Run | Yrd Mat Min Mat Min Exi Slots Evolved 2 | . . . 2 . . Power . | . . . . . . Propulsion . | . . . . . . Utility 1 | . . . 1 . . Weapon 1 | . . . 1 . . Parts Attached 43 | 7 7 4 17 . 8 Power 4 | 1 1 . 2 . . Engine 4 | 1 1 . 2 . . Core . | . . . . . . Reactor . | . . . . . . Propulsion 10 | 2 2 2 3 . 1 Treads 6 | 2 . . 3 . 1 Leg 2 | . 1 1 . . . Wheel 2 | . 1 1 . . . Hover . | . . . . . . Flight . | . . . . . . Utility 10 | 2 1 1 3 . 3 Device 2 | 1 . 1 . . . Storage 3 | 1 1 . . . 1 Processor 2 | . . . 2 . . Hackware . | . . . . . . Protection 3 | . . . 1 . 2 Artifact . | . . . . . . Weapon 19 | 2 3 1 9 . 4 Energy Gun 5 | 2 3 . . . . Energy Cannon 2 | . . . 2 . . Ballistic Gun 9 | . . 1 5 . 3 Ballistic Cannon 2 | . . . 2 . . Launcher 1 | . . . . . 1 Special Weapon . | . . . . . . Impact Weapon . | . . . . . . Slashing Weapon . | . . . . . . Piercing Weapon . | . . . . . . Special Melee Weapon . | . . . . . . Unidentified Prototypes 3 | . . . 3 . . Parts Lost 14 | . . 1 1 . 12 Power 2 | . . . 1 . 1 Propulsion 3 | . . . . . 3 Utility 4 | . . . . . 4 Weapon 5 | . . 1 . . 4 Highest Loss Streak 6 | . . 1 1 . 6 To Critical Strikes 3 | . . . . . 3 Average Backups 8 | 1 5 9 9 9 10 Power . | . 1 1 . . . Propulsion 1 | . 1 1 . 1 . Utility 2 | . . 3 2 3 2 Weapon 4 | . 1 3 5 4 4 Tool/Special . | . . . . . . Unused Backups 30 | . 2 4 11 2 11 Power 4 | . . . 1 . 3 Propulsion 3 | . . . 3 . . Utility 10 | . 1 2 . 1 6 Weapon 12 | . 1 2 7 1 1 Tool/Special 1 | . . . . . 1 Average Slot Usage (%) 96 | . 98 100 98 100 86 Engine 11 | . 14 14 11 11 9 Treads 19 | . 21 8 18 22 20 Wheel 2 | . 6 14 2 . . Device 4 | . 14 14 2 . . Storage 11 | . 14 14 11 11 11 Processor 7 | . . . 8 11 9 Protection 8 | . . . 10 11 11 Energy Gun 8 | . 27 26 5 . . Ballistic Gun 17 | . . 1 15 33 21 Ballistic Cannon 2 | . . . 7 . . Peak Build Rating 20 | 7 10 12 19 18 20 Average Rating 14 | 5 7 10 16 18 16 On Entrance 10 | . 7 10 12 18 18 Naked Turns . | . . . . . . Heaviest Build 41 | 15 22 22 34 30 41 Greatest Support 40 | 40 40 16 40 40 40 Greatest Overweight (x) 4 | . 4 2 1 . 1 Average Overweight (x) . | . . 1 . . . Largest Inventory Capacity 15 | 8 10 10 10 10 15 Average Capacity 10 | 7 8 10 10 10 13 Most Carried 13 | 4 10 10 10 10 13 Average Carried 8 | 1 5 9 9 9 10 Final Capacity 15 | 8 10 10 10 10 15 Final Carried 10 | 3 10 9 10 10 5 Class Distribution -------------------- 44% | Scavenger-Gunner 38% | Mutant 9% | Gunner 7% | Tank Dominant Class ---------------- Mutant | -10/Materials Mutant | -10/Mines Scavenger-Gunner | -9/Materials Scavenger-Gunner | -9/Mines Mutant | -9/Exiles Resources | -11 -10 -10 -9 -9 -9 ----------- Run | Yrd Mat Min Mat Min Exi Matter Collected 1418 | 270 131 124 415 202 276 Remotely . | . . . . . . Salvage Created 1447 | 122 387 214 547 174 3 Parts 86 | 8 23 12 25 18 . Haulers Intercepted 4 | . 1 . 3 . . Recyclers Shooed 3 | . 1 2 . . . Parts Field Recycled . | . . . . . . Retrieved Matter . | . . . . . . Parts Self-Destructed . | . . . . . . Prevented . | . . . . . . Kills | -11 -10 -10 -9 -9 -9 ------- Run | Yrd Mat Min Mat Min Exi Combat Hostiles Destroyed 33 | . 4 3 13 8 5 Guns 24 | . 3 3 9 8 1 Cannons 4 | . . . 4 . . AOE 4 | . . . . . 4 Classes Destroyed 11 | 2 4 2 1 1 1 Worker 1 | . . . . 1 . Builder 3 | . 1 . . 2 . Tunneler 2 | 2 . . . . . Hauler 4 | . 1 . 3 . . Recycler 3 | 1 1 1 . . . Operator 1 | . . . 1 . . Watcher 1 | . 1 . . . . Swarmer 13 | . . 1 5 7 . Grunt 12 | . 4 1 6 1 . Sentry 3 | . . 1 2 . . Assembled 4 | . . . . . 4 Best Kill Streak 4 | 2 2 2 4 3 4 Combat Bots Only 4 | . 2 2 4 3 4 Max Kills in Single Turn 1 | 1 1 1 1 1 1 Gunslinging . | . . . . . . Exploded 1 | . . . . . 1 Melee . | . . . . . . Uniques/NPCs Destroyed 1 | . . . . . 1 8R-AWN (-9/Exiles) Combat | -11 -10 -10 -9 -9 -9 -------- Run | Yrd Mat Min Mat Min Exi Hostile Shots Fired 163 | . 20 11 49 22 61 Missed 35 | . 6 3 15 5 6 Hits 128 | . 14 8 34 17 55 Projectile 128 | . 14 8 34 17 55 Critical Strikes 24 | . . . . . 24 Damage Taken 2162 | . 215 107 304 158 1378 Core 288 | . 37 30 48 17 156 Absorbed by Shields . | . . . . . . Core Remaining (%) 86 | 100 . 73 . . . Volleys Fired 116 | 4 26 10 33 13 30 Largest 3 | 2 2 2 3 3 3 Hottest 119 | 80 90 90 119 71 75 Shots Fired 279 | 8 52 20 95 41 63 Gun 247 | 8 52 20 76 41 50 Cannon 19 | . . . 19 . . Launcher 13 | . . . . . 13 Special . | . . . . . . Kinetic 167 | . . 1 75 41 50 Thermal 18 | . 7 . 11 . . Explosive 13 | . . . . . 13 Electromagnetic 81 | 8 45 19 9 . . Robot Hit Streak 12 | 4 12 10 8 6 9 Robot Miss Streak 7 | 1 3 3 7 3 3 Penetration Max . | . . . . . . Secondary Targets 4 | . . . 3 1 . Max Gunslinging Chain 1 | . . . 1 1 . Shots Hit Robots 168 | 5 38 12 48 19 46 Core Hits 85 | 3 14 7 22 13 26 Critical Kills . | . . . . . . Critical Parts Destroyed 1 | . . . 1 . . Critical Strikes 5 | 1 2 1 1 . . Burn 1 | . 1 . . . . Destroy 1 | . . . 1 . . Corrupt 3 | 1 1 1 . . . Melee Attacks . | . . . . . . Impact . | . . . . . . Slashing . | . . . . . . Piercing . | . . . . . . Sneak Attacks . | . . . . . . Combat Hostiles . | . . . . . . Follow-up Attacks . | . . . . . . Damage Inflicted 3563 | 68 625 287 858 317 1408 Guns 2537 | 68 547 173 566 303 880 Cannons 289 | . . . 289 . . Explosions 694 | . 65 101 . . 528 Melee . | . . . . . . Ramming 43 | . 13 13 3 14 . Kinetic 1855 | . . 9 663 303 880 Thermal 385 | . 152 101 132 . . Explosive 528 | . . . . . 528 Electromagnetic 752 | 68 460 164 60 . . Impact . | . . . . . . Slashing . | . . . . . . Piercing . | . . . . . . Highest Corruption 4 | . . . 4 4 4 Average Corruption 4 | . . . 4 4 4 Corruption Purged . | . . . . . . Corruption Blocked . | . . . . . . Effects 49 | . . . 8 24 17 Message Errors 11 | . . . 3 3 5 Matter Fused 9 | . . . 1 5 3 Heat Flow Errors 9 | . . . 2 3 4 Energy Discharges 2 | . . . . 2 . Parts Fused 1 | . . . . 1 . Data Loss (minor) 7 | . . . . 6 1 Data Loss (major) 3 | . . . . 2 1 Misfires 6 | . . . 2 2 2 Weapon Failures 1 | . . . . . 1 Overload Shots . | . . . . . . Overflow Damage . | . . . . . . Projectiles . | . . . . . . Explosions . | . . . . . . Melee . | . . . . . . Knockbacks . | . . . . . . Impact . | . . . . . . Kinetic . | . . . . . . Secondary . | . . . . . . Self-Inflicted Damage 88 | . 30 6 . . 52 Shots 2 | . 1 . . . 1 Rammed 9 | . 2 2 2 3 . Targets Rammed 10 | . 2 2 2 4 . Kicked . | . . . . . . Crushed 1 | . . . . 1 . Highest Temperature 443 | 36 195 168 443 265 264 Average Temperature 78 | 16 69 57 98 66 75 Received Heat Transfer 222 | . 105 39 51 27 . Effects 1 | . . . 1 . . Short Circuit 1 | . . . 1 . . Siege Activations . | . . . . . . Martial Activations . | . . . . . . Shielding Activations . | . . . . . . Robots Disrupted . | . . . . . . Combat Hostiles . | . . . . . . Robots Corrupted 2 | . 2 . . . . Combat Hostiles 1 | . 1 . . . . Parts Fried 2 | 1 1 . . . . Impact Corruptions . | . . . . . . Robots Melted . | . . . . . . Combat Hostiles . | . . . . . . Parts Melted 3 | . . . 3 . . Heat Transferred 705 | . 383 100 222 . . Parts Sabotaged . | . . . . . . Parts Stolen . | . . . . . . Parts Stripped . | . . . . . . Power Chain Reactions 2 | . 1 1 . . . Alert | -11 -10 -10 -9 -9 -9 ------- Run | Yrd Mat Min Mat Min Exi Maximum Alert Level 1 | . . . 1 . . Low Security (%) 92 | 100 100 100 76 100 . Level 1 7 | . . . 23 . . Level 2 . | . . . . . . Level 3 . | . . . . . . Level 4 . | . . . . . . Level 5 . | . . . . . . High Security . | . . . . . . Max Security . | . . . . . . Peak Influence 301 | 5 55 109 301 114 . Initial 114 | . . . 42 114 . Average 54 | 1 8 16 113 43 . Influence Increases 1235 | 15 134 164 687 235 . Destroy 0b10 Robot/C 780 | . 80 100 440 160 . Destroy 0b10 Robot/NC 80 | 15 20 5 25 15 . Destroy Leader 182 | . 24 20 108 30 . Allied During Kill 87 | . . 19 68 . . Successful Hack 34 | . 5 . 29 . . Disable Machine 15 | . . . 15 . . Destroy Structure 12 | . 5 5 2 . . Lose Combat Pursuer 45 | . . 15 . 30 . Influence Decreases 1235 | 15 134 55 501 530 . Entered New Map 248 | . . . 67 181 . Time Decay 927 | 15 134 45 384 349 . Lost Part 20 | . . 10 10 . . Lost Ally 40 | . . . 40 . . Squads Dispatched 4 | . . . 4 . . Investigation 1 | . . . 1 . . Extermination . | . . . . . . Reinforcement 3 | . . . 3 . . Assault . | . . . . . . Garrison . | . . . . . . Intercept . | . . . . . . Searches Triggered . | . . . . . . Construction Impeded 1 | . . . 1 . . Haulers Reinforced . | . . . . . . Active Scanning Responses . | . . . . . . Cargo Convoy Interrupts . | . . . . . . Stealth | -11 -10 -10 -9 -9 -9 --------- Run | Yrd Mat Min Mat Min Exi Distress Signals 4 | . 1 . 3 . . Communications Jammed . | . . . . . . Distress Signals . | . . . . . . Times Spotted 61 | . 10 7 26 10 8 Peak Tracking Total 10 | . 3 3 6 4 10 Tactical Retreats 4 | . . 1 . 2 1 Traps | -11 -10 -10 -9 -9 -9 ------- Run | Yrd Mat Min Mat Min Exi Traps Triggered 2 | . 1 . 1 . . Indirectly . | . . . . . . Trap Hack Attempts . | . . . . . . Triggered . | . . . . . . Disarmed . | . . . . . . Reprogrammed . | . . . . . . Reused . | . . . . . . Traps Extracted . | . . . . . . Installed . | . . . . . . Triggered . | . . . . . . Machines | -11 -10 -10 -9 -9 -9 ---------- Run | Yrd Mat Min Mat Min Exi Machines Disabled 6 | . . . 1 . 5 Max in Single Turn 2 | . . . 1 . 2 Machines Repaired . | . . . . . . Machines Dismantled . | . . . . . . Machines Sabotaged . | . . . . . . Overloaded Fab Kills . | . . . . . . Hacking | -11 -10 -10 -9 -9 -9 --------- Run | Yrd Mat Min Mat Min Exi Machines Accessed 13 | . 6 . 6 . 1 Terminals 11 | . 6 . 5 . . Fabricators . | . . . . . . Repair Stations 1 | . . . 1 . . Recycling Units . | . . . . . . Scanalyzers . | . . . . . . Garrison Access . | . . . . . . Total Hacks 31 | . 11 . 19 . 1 Successful 19 | . 7 . 11 . 1 Failed 12 | . 4 . 8 . . Catastrophic 6 | . 2 . 4 . . Database Lockouts . | . . . . . . Manual 20 | . 10 . 10 . . Terminals 28 | . 11 . 17 . . Fabricators . | . . . . . . Repair Stations 2 | . . . 2 . . Recycling Units . | . . . . . . Scanalyzers . | . . . . . . Garrison Access . | . . . . . . Terminal Hacks 10 | . 1 . 8 . 1 Record 1 | . . . . . 1 Robot Analysis 2 | . 1 . 1 . . Prototype ID Bank 2 | . . . 2 . . Branch Access Points 1 | . . . 1 . . Alert Level 1 | . . . 1 . . Hauler Manifests 1 | . . . 1 . . Registered Components 1 | . . . 1 . . Zone Layout 1 | . . . 1 . . Fabricator Hacks . | . . . . . . Repair Station Hacks . | . . . . . . Recycling Unit Hacks . | . . . . . . Scanalyzer . | . . . . . . Garrison Access Hacks . | . . . . . . Unauthorized Hacks 9 | . 6 . 3 . . Terminals 9 | . 6 . 3 . . Botnet 5 | . 2 . 3 . . Skim 4 | . 4 . . . . Fabricators . | . . . . . . Repair Stations . | . . . . . . Recycling Units . | . . . . . . Scanalyzers . | . . . . . . Garrison Access . | . . . . . . Data Cores Recovered . | . . . . . . Used . | . . . . . . Hacking Detections 12 | . 6 . 6 . . Full Trace Events 1 | . 1 . . . . Feedback Events . | . . . . . . Feedback Blocked . | . . . . . . Robot Schematics Acquired . | . . . . . . Robots Built . | . . . . . . Authchips . | . . . . . . Time . | . . . . . . Total Robot Build Rating . | . . . . . . Part Schematics Acquired . | . . . . . . Parts Built . | . . . . . . Authchips . | . . . . . . Time . | . . . . . . Total Part Build Rating . | . . . . . . Parts Repaired . | . . . . . . Time . | . . . . . . Parts Recycled . | . . . . . . Recycled Matter . | . . . . . . Retrieved Matter . | . . . . . . Retrieved Components . | . . . . . . Parts Scanalyzed . | . . . . . . Part Schematics Acquired . | . . . . . . Parts Damaged . | . . . . . . Bothacking | -11 -10 -10 -9 -9 -9 ------------ Run | Yrd Mat Min Mat Min Exi Used RIF Installer . | . . . . . . Robots Hacked . | . . . . . . Non-combat . | . . . . . . Combat . | . . . . . . Robot Hacks Applied . | . . . . . . Relay Couplers Released . | . . . . . . Fabnet Peak Effective % . | . . . . . . Robots Rewired . | . . . . . . Allies Hacked . | . . . . . . Hacks Repelled . | . . . . . . Allies | -11 -10 -10 -9 -9 -9 -------- Run | Yrd Mat Min Mat Min Exi Total Allies 3 | . . 3 . . . Largest Group 3 | . . 3 3 . . Highest-Rated Group 40 | . . 40 40 . . Highest-Rated Ally 16 | . . 16 16 . . Total Orders . | . . . . . . Ally Attacks 58 | . . 5 53 . . Total Damage 662 | . . 66 596 . . Kills 12 | . . 2 10 . . Allies Corrupted . | . . . . . . Allies Melted . | . . . . . . Intel | -11 -10 -10 -9 -9 -9 ------- Run | Yrd Mat Min Mat Min Exi Active Infowar (turns) 1146 | 27 676 213 230 . . Seismic 1146 | 27 676 213 230 . . Robot Analysis Total 2 | . 1 . 1 . . Derelict Logs Recovered 1 | . . . . 1 . Drone Launches . | . . . . . . Drone Recoveries . | . . . . . . Exploration | -11 -10 -10 -9 -9 -9 ------------- Run | Yrd Mat Min Mat Min Exi Turns Passed 3686 | 115 676 213 945 947 790 Spaces Moved 1965 | 56 425 136 413 544 391 Core 3 | 2 1 . . . . Treads 1441 | 54 160 . 292 544 391 Legs 2 | . 2 . . . . Wheels 519 | . 262 136 121 . . Hover . | . . . . . . Flight . | . . . . . . Fastest Speed 50 | 50 95 110 115 160 160 Average Speed 153 | 156 122 112 180 160 165 Slowest Speed 250 | 160 250 115 240 160 240 Overloaded Moves . | . . . . . . Propulsion Burnouts . | . . . . . . Robots Hopped . | . . . . . . Potential Cave-ins . | . . . . . . Cave-ins Triggered . | . . . . . . Exploration Rate (%) 48 | 5 76 33 46 78 55 Regions Visited 5 Branch Regions 3 Pre-discovered Areas 2 | . . . . 1 1 Known Exits Taken 1 | . . . 1 . . Unknown Exits Taken 4 | 1 1 1 . 1 . Scrap Searched 1 | . . . . 1 . Spaces Dug . | . . . . . . Terrain Destroyed 32 | . 4 5 1 . 22 Melee . | . . . . . . Projectile 1 | . . . 1 . . AOE 31 | . 4 5 . . 22 Terrain Rammed . | . . . . . . Walls Destroyed . | . . . . . . Machines Disabled . | . . . . . . Actions | -11 -10 -10 -9 -9 -9 --------- Run | Yrd Mat Min Mat Min Exi Total 2399 | 73 527 174 547 590 488 Wait 154 | 2 48 8 36 26 34 Move 1960 | 55 424 135 412 543 391 Hop . | . . . . . . Pick Up 54 | 5 12 7 18 2 10 Fast Attach 19 | 5 3 1 10 . . Attach 16 | 2 1 1 5 . 7 Detach 1 | . . . 1 . . Swap 15 | . 4 2 4 . 5 Drop 54 | . 7 8 26 2 11 Fire 116 | 4 26 10 33 13 30 Melee . | . . . . . . Ram 3 | . 2 1 . . . Kick . | . . . . . . Crush 7 | . . 1 2 4 . Escape Stasis . | . . . . . . Rewire . | . . . . . . Trap . | . . . . . . Miscellaneous . | . . . . . . Route ------- -11/Scrapyard -10/Materials (discovered 4 exits: *Mat x2 / [*Min x2]) -10/Mines -9/Materials -9/Mines (discovered 2 exits: [*Mat] / *Exi) -9/Exiles History --------- Turn | Location | Event 7 | -11/Scrapyard | Discovered new exit (range 16) 116 | -11/Scrapyard | Entered Materials 307 | -10/Materials | Build established: Mutant 351 | -10/Materials | Discovered new exit (range 10) 579 | -10/Materials | Discovered new exit (range 16) 642 | -10/Materials | Discovered new exit (range 10) 750 | -10/Materials | Discovered new exit (range 9) 792 | -10/Materials | Entered Mines 796 | -10/Mines | Assisted by bots powering up and referring to "LRC-V3" 913 | -10/Mines | Joined a pair of Derelicts in attacking an 0b10 outpost 978 | -10/Mines | Discovered new exit (range 10) 1005 | -10/Mines | Entered Materials 1005 | -9/Materials | Accompanied by 3 allies 1005 | -9/Materials | Evolved 2 slots: Utility x1, Weapon x1 1053 | -9/Materials | Discovered new exit (range 15) 1758 | -9/Materials | Build established: Scavenger-Gunner 1864 | -9/Materials | Identified exit to Mines 1950 | -9/Materials | Entered Mines 1987 | -9/Mines | Found a hidden stash of uninstalled traps 2224 | -9/Mines | Discovered new exit (range 3) 2227 | -9/Mines | Learned location of Storage (-8) 2280 | -9/Mines | Deemed a non-threat by the Exiles lab entrance 2280 | -9/Mines | Discovered new exit (range 5) 2416 | -9/Mines | Found a damaged Exp. Sensor Array with a note attached 2420 | -9/Mines | Found Prototype Device 2672 | -9/Mines | Received a Rocket Launcher from a helpful Derelict 2684 | -9/Mines | Learned Materials interactive machine intel 2897 | -9/Mines | Entered Exiles 2942 | -9/Exiles | Met 8R-AWN 2968 | -9/Exiles | Met EX-HEX 3027 | -9/Exiles | Met EX-DEC 3058 | -9/Exiles | Learned location of Zion (-7) 3393 | -9/Exiles | Build established: Mutant 3468 | -9/Exiles | Attacked by the Exiles 3611 | -9/Exiles | Destroyed 8R-AWN 3634 | -9/Exiles | Lost 6 parts (1p2n2u1w) 3686 | -9/Exiles | Core integrity fell below 50% 3687 | -9/Exiles | Self-destructed Last Messages --------------- 03601_ Penetrated by HV Slug. 03601_ Hpw. Shotgun destroyed. 03601_ Penetrated by HV Slug. 03601_ Critical hit (Destroy). 03601_ Lgt. Treads destroyed. 03603_ Penetrated by HV Slug. 03603_ Imp. Targeting Computer destroyed. 03604_ Machine disabled. 03606_ Penetrated by HV Slug. 03607_ RCBTXELWAQ,0/J3 RHWBMHJ 03608_ Penetrated by HV Slug. 03611_ 8R-AWN destroyed. 03630_ P4ODGN:KKA HN:GR>H2QUIH7GBU:82FEVXXQ0K 03663_ Hvy. Assault Rifle destroyed. 03673_ Hpw. Shotgun destroyed. 03675_ Lgt. Armor Plating destroyed. 03681_ Lgt. Treads destroyed. 03681_ Lgt. Armor Plating destroyed. 03683_ Knocked back. 03685_ Hvy. Assault Rifle destroyed. Map ----- +----------------------------------------------------+ | ?????????????????????????????????????????????????? | | ?????????????????????????????????????????????????? | | ?????????????????????????????????????????????????? | | ?????????????????????????????????????????????????? | | ?????????????????????????????????????????????????? | | ?????????????????????????????????????????????????? | | ?????????????????????????????????????????????????? | | ?????????????????????????????????????????????????? | | ?????????????????????????????????????????????????? | | ???????????????#######???????????????????????????? | | ? ######???????# ! "#???????????????????????????? | | #""#??????# "#???????????????????????????? | | ??????# "#???????????????????????????? | | #????## ""#???????????????????????????? | | #####" " #????????????? ?????????????? | | # ##" "#????????????" """#????????? | | ?# #"" ###????????????" ?????????? | | ????# ###???????????"" ??????????" | | ???????# #???????????"" "#????????#" | | ???????### ##??????????? ""?????????#" | | ?########" ##???????????" "?????????##" | | ?# !!"""" ###?????#???# #????????##"" | | ?# ## ##### ##### ###?######"" | | ?# !! ### # X# #"###""""""" | | ?# !!!#####" % % """""" " "" | | ?# !"""" "#"#???#" %%@ % "" """ " | | ?########## #???## " " | | ??????????# #????## | | ??????????# #????# # # | | ??????????# #????######## | | ??????????# #???????????# | | ??????????# #???????????# | | ??????????? ????????????## """" | | ??????????? ?????????????# ##### | | ??????????? ?????????????# " ""##???? | | ??????????? ?????????????# """##????? | | ??????????? ????????????#"" """##?????? | | ??????????? ????????????#"" ""#??????? | | ??????????? ????????????#"" ########? | | ????????????????????????#"" ## ## | | ????????????????????????#"" " | | ????????????????????????##"" | | ?????????????????????????#"""" | | ?????????????????????????## | | ??????????????????????????#" " | | ??????????????????????????#"""" ""## | | ??????????????????????????#"" ""#### | | ???????????????????????????" """"##??# | | ???????????????????????????""" """#???# | | ??????????????????????????## ""##???! | +----------------------------------------------------+ Best States ------------- Heat Dissipation 28 Energy Generation 14 Energy Capacity 280 Matter Stores 300 Matter Capacity 300 Sight Range 16 Terrain Scan Density 10 Armor Coverage 300 Evasion (%) 41 Targeting Accuracy 6 Recoil Reduction 2 Item Schematics ----------------- None Robot Schematics ------------------ None Fabricated ------------ Nothing Repaired ---------- Nothing Alien Tech Used ----------------- None Achievements -------------- None Challenges ------------ None Game ------ Seed BoreDispersalDrillbomb Manual? 0 Play Time 00:32:27 Cumulative 123.0 hours Start 2025.10.08 @ 14:53:53 End 2025.10.08 @ 15:23:58 Sessions 1 Manual Loads 0 Difficulty Rogue Special Mode None Game No. 66 Rogue 61 Adventurer 5 Explorer 0 Win Type - Total 2 Types 2/0/0/0/0/0/0/0/0/0 Lore% 54 Gallery% 58 Achievement% 53 Wizard Run 0 Options --------- Layout 1 ASCII 0 Keyboard 0 Movement Numpad Keybinds 0 Fullscreen 1 Font 24/Smallcaps Map View 50x35 Zoom Use 0% Tactical HUD 1 Map Filters NONE Filters NONE Steam 1 RUN: 4a397a55-efea-421e-9717-6c9b41a47c75